Cogmind - Beta 14 *** ADVENTURER MODE // 2024.10.12 @ 19:42:18 // Winter2019/RPGLIKE Player: Noname Result: Destroyed by G-73 Enforcer with Heavy Laser Performance ------------- Evolutions (8) 4000 Regions Visited (19) 3800 Robots Destroyed (122) 610 Value Destroyed (5963) 5963 Prototype IDs (48) 960 Alien Tech Used (0) 0 Bonus (442) 442 TOTAL SCORE: 15775 Bonus ------- High Alert Combat Kills 49 Follower Combat Kills 93 Aligned with FarCom 300 Cogmind --------- Core Integrity 0/1000 Matter 300/300 Energy 270/270 System Corruption 0% Temperature Cool (47) Movement Rolling (90) Location -2/Research Parts ------- > --- POWER (3) -------- Light Antimatter Reactor Micro Antimatter Reactor Micro Antimatter Reactor > --- PROPULSION (5) --- Centrium Wheel Centrium Wheel Centrium Wheel Centrium Wheel Centrium Wheel > --- UTILITY (10) ----- 0b10 Decoder Chip [Generic] 0b10 Decoder Chip [Scout] Advanced Actuator Array Advanced Transmission Jammer Advanced Reaction Control System Layered Medium Armor Plating Advanced Hacking Suite Advanced System Shield Improved Dynamic Insulation System Improved System Restoration Module > --- WEAPON (5) ------- Precision Rocket Launcher Phasing Sabre Phasing Sabre Plasma Sword Plasma Sword > --- INVENTORY (7) ---- Protomatter-75 Centrium Wheel Advanced Cooling System Improved Transmission Jammer Graphene Brace Advanced Shield Generator Advanced System Restoration Module Peak State ------------ > --- POWER ------------ Micro Fission Core Light Antimatter Reactor Micro Antimatter Reactor > --- PROPULSION ------- Centrium Wheel Centrium Wheel Centrium Wheel Centrium Wheel Centrium Wheel > --- UTILITY ---------- 0b10 Decoder Chip [Generic] 0b10 Decoder Chip [Scout] Precision Energy Filter Advanced Actuator Array Advanced Transmission Jammer Advanced Reaction Control System Advanced Hacking Suite Advanced System Shield Improved Dynamic Insulation System Improved System Restoration Module > --- WEAPON ----------- Precision Rocket Launcher Phasing Sabre Phasing Sabre Plasma Sword Plasma Sword > --- INVENTORY -------- Protomatter Centrium Wheel Advanced Cooling System Improved Transmission Jammer Graphene Brace Advanced Shield Generator Advanced System Restoration Module [Rating: 152] Favorites ----------- Power Light Angular Momentum Engine Engine Light Angular Momentum Engine Power Core Light Fission Core Reactor Light Antimatter Reactor Propulsion Xenon Bombardment Thruster Treads Advanced Treads Leg Aluminum Leg Wheel Centrium Wheel Hover Unit Gravmag Array Flight Unit Xenon Bombardment Thruster Utility Structural Scanner Device Structural Scanner Storage High-capacity Matter Pod Processor 0b10 Decoder Chip [Generic] Hackware Advanced Hacking Suite Protection Improved Medium Armor Plating Weapon Phasing Sabre Energy Gun EM Pulse Gun Energy Cannon Heavy Particle Cannon Ballistic Gun High-powered Shotgun Launcher Precision Rocket Launcher Impact Weapon Shock Maul Slashing Weapon Phasing Sabre Special Melee Weapon Improved Datajack Build | -11 -10 -10 -10 -9 -8 -8 -8 -8 -6 -6 -6 -6 -5 -5 -5 -5 -4 -3 -2 ------- Run | Yrd Mat Min Exi Min Mat Sto Rec Scr Fac Low Low Zio Pro Fac Was Fac Fac Res Res Slots Evolved 19 | 5 . . 1 . 5 1 1 1 1 . 1 . 1 . . . 1 1 . Power 2 | . . . . . . . 1 . . . . . . . . . 1 . . Propulsion 4 | 1 . . . . 1 1 . 1 . . . . . . . . . . . Utility 9 | 3 . . 1 . 3 . . . 1 . . . 1 . . . . . . Weapon 4 | 1 . . . . 1 . . . . . 1 . . . . . . 1 . Parts Attached 131 | 3 4 5 1 . 19 5 . 4 19 2 3 2 2 21 . 9 17 13 2 Power 17 | . . . . . 1 . . 3 1 . . . . 2 . 1 5 3 1 Engine 4 | . . . . . 1 . . 3 . . . . . . . . . . . Core 6 | . . . . . . . . . 1 . . . . 2 . 1 1 1 . Reactor 7 | . . . . . . . . . . . . . . . . . 4 2 1 Propulsion 30 | 2 . . . . 6 3 . 1 3 . . . . 6 . 3 6 . . Treads 2 | . . . . . 2 . . . . . . . . . . . . . . Leg . | . . . . . . . . . . . . . . . . . . . . Wheel 9 | 2 . . . . . . . . . . . . . 1 . 1 5 . . Hover 11 | . . . . . . . . . 3 . . . . 5 . 2 1 . . Flight 8 | . . . . . 4 3 . 1 . . . . . . . . . . . Utility 60 | . 4 2 1 . 9 2 . . 10 . . 2 . 11 . 5 6 7 1 Device 35 | . 3 1 1 . 1 2 . . 5 . . 1 . 6 . 4 5 6 . Storage 1 | . . 1 . . . . . . . . . . . . . . . . . Processor 6 | . . . . . 2 . . . 2 . . 1 . . . . 1 . . Hackware 5 | . . . . . 2 . . . 1 . . . . 2 . . . . . Protection 13 | . 1 . . . 4 . . . 2 . . . . 3 . 1 . 1 1 Artifact . | . . . . . . . . . . . . . . . . . . . . Weapon 24 | 1 . 3 . . 3 . . . 5 2 3 . 2 2 . . . 3 . Energy Gun 2 | 1 . 1 . . . . . . . . . . . . . . . . . Energy Cannon 1 | . . 1 . . . . . . . . . . . . . . . . . Ballistic Gun 1 | . . 1 . . . . . . . . . . . . . . . . . Ballistic Cannon . | . . . . . . . . . . . . . . . . . . . . Launcher 3 | . . . . . . . . . . . 1 . 1 . . . . 1 . Special Weapon . | . . . . . . . . . . . . . . . . . . . . Impact Weapon 1 | . . . . . . . . . . . . . . . . . . 1 . Slashing Weapon 15 | . . . . . 3 . . . 4 2 2 . 1 2 . . . 1 . Piercing Weapon . | . . . . . . . . . . . . . . . . . . . . Special Melee Weapon 1 | . . . . . . . . . 1 . . . . . . . . . . Unidentified Prototypes 6 | . . . . . 1 1 . . . . . . . 1 . 1 . 2 . Parts Lost 2 | . . . . . . . . . . . . . . . 1 . . 1 . Power . | . . . . . . . . . . . . . . . . . . . . Propulsion 1 | . . . . . . . . . . . . . . . 1 . . . . Utility 1 | . . . . . . . . . . . . . . . . . . 1 . Weapon . | . . . . . . . . . . . . . . . . . . . . Highest Loss Streak 1 | . . . . . . . . . . . . . . . 1 . . 1 . To Critical Strikes . | . . . . . . . . . . . . . . . . . . . . Average Slot Usage (%) 95 | . 81 100 100 100 90 99 94 99 96 94 94 94 94 94 90 89 91 99 99 Engine 4 | . 11 11 10 10 7 6 5 10 5 5 5 5 4 4 4 4 2 . . Core 3 | . . . . . . . . . 4 5 5 5 4 4 4 4 5 3 2 Reactor 1 | . . . . . . . . . . . . . . . . . 3 8 10 Wheel 5 | . 22 22 21 20 7 . . . . . . . . . . 1 6 21 21 Hover 7 | . . . . . . . . . 7 15 15 15 14 17 17 17 9 . . Flight 6 | . . . . . 4 23 23 26 14 5 5 5 4 . . . . . . Device 27 | . 23 33 36 40 29 32 35 33 33 31 30 27 24 25 26 25 22 21 21 Processor 6 | . . . . . 7 7 5 5 4 5 5 7 9 6 4 4 7 8 8 Hackware 5 | . . . . . 4 3 . . 1 5 5 5 4 8 9 9 9 8 8 Protection 4 | . 2 1 . . 3 6 5 5 5 5 5 5 4 4 2 1 4 4 3 Slashing Weapon 15 | . . . . . 5 18 17 16 14 15 17 20 19 19 19 19 18 17 17 Peak Build Rating 152 | 5 9 15 23 23 52 57 57 66 82 84 89 94 94 119 119 118 143 152 152 Average Rating 91 | 4 7 11 18 23 32 55 57 65 77 82 87 90 94 111 112 110 124 142 150 On Entrance 69 | 3 5 9 15 23 23 52 57 57 66 81 84 89 94 94 119 101 118 143 150 Naked Turns . | . . . . . . . . . . . . . . . . . . . . Heaviest Build 74 | 9 13 21 29 29 37 32 32 45 53 50 58 53 57 55 54 49 70 71 74 Greatest Support 90 | 20 20 20 20 20 44 29 33 39 47 47 47 47 47 58 48 61 90 90 90 Greatest Overweight (x) 4 | . . 1 1 1 4 1 2 1 1 1 1 1 1 1 1 . 1 . . Average Overweight (x) . | . . . 1 1 1 1 . . 1 1 1 1 1 . . . . . . Largest Inventory Capacity 7 | 1 1 1 1 1 1 1 1 1 2 4 4 4 5 6 6 6 7 7 7 Average Capacity 4 | 1 1 1 1 1 1 1 1 1 1 3 4 4 4 5 6 6 6 7 7 Most Carried 7 | 1 1 1 1 1 1 1 1 1 2 4 4 4 4 6 6 6 7 7 7 Average Carried 3 | . 1 1 1 1 . . 1 1 1 3 3 3 4 5 6 5 6 6 7 Final Capacity 7 | 1 1 1 1 1 1 1 1 1 2 4 4 4 5 6 6 6 7 7 7 Final Carried 7 | 1 1 1 1 1 1 1 1 1 2 4 4 4 4 6 6 6 7 7 7 Class Distribution -------------------- 66% | Hacker-Gladiator 11% | Wizard-Gladiator 10% | Commander-Gladiator 7% | Mutant Dominant Class ---------------- Mutant | -10/Materials Mutant | -10/Mines Mutant | -10/Exiles Mutant | -9/Mines Hacker-Gladiator | -8/Materials Hacker-Gladiator | -8/Storage Commander-Ninja | -8/Recycling Commander-Gladiator | -8/Scraptown Hacker-Gladiator | -6/Factory Hacker-Gladiator | -6/Lower Caves Hacker-Gladiator | -6/Lower Caves Hacker-Gladiator | -6/Zion Hacker-Gladiator | -5/Proximity Caves Hacker-Gladiator | -5/Factory Hacker-Gladiator | -5/Waste Hacker-Gladiator | -5/Factory Hacker-Gladiator | -4/Factory Wizard-Gladiator | -3/Research Wizard-Gladiator | -2/Research Resources | -11 -10 -10 -10 -9 -8 -8 -8 -8 -6 -6 -6 -6 -5 -5 -5 -5 -4 -3 -2 ----------- Run | Yrd Mat Min Exi Min Mat Sto Rec Scr Fac Low Low Zio Pro Fac Was Fac Fac Res Res Matter Collected 1817 | 230 40 205 . 51 70 126 10 71 214 40 60 . 85 200 . 79 161 105 70 Remotely . | . . . . . . . . . . . . . . . . . . . . Salvage Created 5231 | . 68 43 . . 78 305 133 . 209 255 282 . 861 392 . 234 1053 257 1061 Parts 312 | . 2 4 . 5 8 29 4 . 15 12 11 . 34 33 . 22 60 24 49 Haulers Intercepted . | . . . . . . . . . . . . . . . . . . . . Recyclers Shooed . | . . . . . . . . . . . . . . . . . . . . Parts Field Recycled . | . . . . . . . . . . . . . . . . . . . . Retrieved Matter . | . . . . . . . . . . . . . . . . . . . . Parts Self-Destructed 49 | . . . . . . . . . . 8 8 . 33 . . . . . . Prevented 1 | . . . . . . . . . . . . . 1 . . . . . . Kills | -11 -10 -10 -10 -9 -8 -8 -8 -8 -6 -6 -6 -6 -5 -5 -5 -5 -4 -3 -2 ------- Run | Yrd Mat Min Exi Min Mat Sto Rec Scr Fac Low Low Zio Pro Fac Was Fac Fac Res Res Combat Hostiles Destroyed 104 | . 1 4 . 2 4 12 3 . 3 5 9 . 20 7 . 5 14 4 11 Melee 86 | . . . . . 1 12 3 . 3 5 6 . 15 7 . 5 14 4 11 Guns 9 | . 1 4 . 1 3 . . . . . . . . . . . . . . Cannons 1 | . . . . 1 . . . . . . . . . . . . . . . AOE 8 | . . . . . . . . . . . 3 . 5 . . . . . . Classes Destroyed 12 | . 1 2 . . 1 1 1 . 1 1 . . 3 . . . . . 1 Worker 1 | . . 1 . . . . . . . . . . . . . . . . . Drone 2 | . . . . . . . . . . . . . 2 . . . . . . Watcher 16 | . . . . . . . . . 1 . . . . 2 . 4 4 2 3 Swarmer 19 | . . 2 . . 3 . . . . . 3 . 5 . . 2 4 . . Grunt 25 | . 1 2 . 2 . 4 . . . 2 1 . 5 . . 1 4 . 3 Brawler 2 | . . . . . . . . . . . . . 2 . . . . . . Duelist 3 | . . . . . . . . . . . . . 3 . . . . . . Sentry 24 | . . . . . 1 7 2 . 3 1 . . 2 2 . 2 2 1 1 Specialist 2 | . . . . . . . . . . . . . . . . . . . 2 Hunter 4 | . . . . . . 1 . . . 1 1 . 1 . . . . . . Programmer 18 | . . . . . . . 1 . . . . . . 5 . . 4 3 5 Thug 5 | . . . . . . . . . . 1 4 . . . . . . . . Mutant 1 | . . . . . . . . . . 1 . . . . . . . . . Best Kill Streak 6 | . 1 3 . 2 3 2 1 . 1 1 4 . 6 2 . 2 5 3 3 Combat Bots Only 6 | . 1 2 . 2 3 2 1 . 1 1 4 . 6 2 . 2 5 3 3 Max Kills in Single Turn 3 | . 1 2 . 1 1 2 1 . 1 1 2 . 3 1 . 1 1 1 1 Gunslinging . | . . . . . . . . . . . . . . . . . . . . Exploded 3 | . . . . . . . . . . . 2 . 3 . . . . . . Melee 2 | . . . . . 1 2 1 . 1 1 1 . 2 1 . 1 1 1 1 Uniques/NPCs Destroyed . | . . . . . . . . . . . . . . . . . . . . Combat | -11 -10 -10 -10 -9 -8 -8 -8 -8 -6 -6 -6 -6 -5 -5 -5 -5 -4 -3 -2 -------- Run | Yrd Mat Min Exi Min Mat Sto Rec Scr Fac Low Low Zio Pro Fac Was Fac Fac Res Res Hostile Shots Fired 573 | . 6 17 . 3 9 45 6 . 75 54 30 . 89 38 1 18 78 21 83 Missed 157 | . 1 3 . 1 1 10 . . 19 13 8 . 30 9 . 11 31 4 16 Damage Taken 5670 | . 42 105 . 24 76 407 60 . 322 355 198 . 851 464 35 95 534 895 1207 Core 4099 | . 34 82 . 18 59 284 51 . 226 268 153 . 601 328 28 76 306 690 895 Absorbed by Shields 203 | . . . . . . . . . . . . . . . . . 163 40 . Redirected to Core 3564 | . 26 72 . 18 51 275 32 . 205 183 128 . 497 313 28 65 298 615 758 Ignored by Resistances 1982 | . 14 36 . 8 20 162 27 . 155 122 64 . 271 134 12 30 263 132 532 Regen/Repaired (Parts) 554 | . . . . . . . . . . . . . . 280 . 11 40 . 223 Core Remaining (%) 90 | 100 . . . 100 . . . 100 . . . . 93 . . 84 92 65 . Volleys Fired 36 | . 4 10 . 3 14 . . . . . 2 . 3 . . . . . . Largest 2 | . 2 2 . 2 2 . . . . . 1 . 1 . . . . . . Hottest 100 | . 90 100 . 100 100 . . . . . 43 . 43 . . . . . . Shots Fired 56 | . 8 20 . 6 17 . . . . . 2 . 3 . . . . . . Gun 28 | . 8 14 . 3 3 . . . . . . . . . . . . . . Cannon 23 | . . 6 . 3 14 . . . . . . . . . . . . . . Launcher 5 | . . . . . . . . . . . 2 . 3 . . . . . . Special . | . . . . . . . . . . . . . . . . . . . . Kinetic 12 | . . 6 . 3 3 . . . . . . . . . . . . . . Thermal 31 | . 4 10 . 3 14 . . . . . . . . . . . . . . Explosive 5 | . . . . . . . . . . . 2 . 3 . . . . . . Electromagnetic 8 | . 4 4 . . . . . . . . . . . . . . . . . Robot Hit Streak 18 | . 4 18 . 9 10 . . . . . 2 . 2 . . . . . . Robot Miss Streak 2 | . 2 2 . . 1 . . . . . . . 1 . . . . . . Penetration Max . | . . . . . . . . . . . . . . . . . . . . Secondary Targets . | . . . . . . . . . . . . . . . . . . . . Shots Hit Robots 384 | . 5 17 . 5 7 32 8 . 21 24 23 . 45 35 . 21 50 22 69 Core Hits 164 | . 2 8 . 5 4 13 1 . 7 8 10 . 25 11 . 10 25 11 24 Critical Kills . | . . . . . . . . . . . . . . . . . . . . Critical Parts Destroyed . | . . . . . . . . . . . . . . . . . . . . Critical Strikes 62 | . 1 1 . . . 7 1 . 5 4 4 . 7 5 . . 7 3 17 Burn 2 | . 1 1 . . . . . . . . . . . . . . . . . Sever 60 | . . . . . . 7 1 . 5 4 4 . 7 5 . . 7 3 17 Melee Attacks 527 | . . . . . 1 42 9 . 27 30 24 . 49 71 . 47 97 41 89 Impact . | . . . . . . . . . . . . . . . . . . . . Slashing 526 | . . . . . 1 42 9 . 26 30 24 . 49 71 . 47 97 41 89 Piercing . | . . . . . . . . . . . . . . . . . . . . Sneak Attacks 16 | . . . . . . . 4 . . 2 5 . 3 1 . 1 . . . Combat Hostiles 13 | . . . . . . . 4 . . . 5 . 3 . . 1 . . . Follow-up Attacks 118 | . . . . . . 9 2 . 6 9 6 . 15 9 . 5 16 10 31 Damage Inflicted 17148 | . 86 386 . 120 168 1209 546 . 792 1093 1334 . 2267 1606 . 1124 2333 973 3111 Guns 403 | . 63 236 . 45 59 . . . . . . . . . . . . . . Cannons 300 | . . 150 . 75 75 . . . . . . . . . . . . . . Explosions 823 | . 23 . . . . . . . . . 318 . 482 . . . . . . Melee 15622 | . . . . . 34 1209 546 . 792 1093 1016 . 1785 1606 . 1124 2333 973 3111 Ramming . | . . . . . . . . . . . . . . . . . . . . Kinetic 251 | . . 147 . 45 59 . . . . . . . . . . . . . . Thermal 385 | . 47 188 . 75 75 . . . . . . . . . . . . . . Explosive 800 | . . . . . . . . . . . 318 . 482 . . . . . . Electromagnetic 90 | . 39 51 . . . . . . . . . . . . . . . . . Impact . | . . . . . . . . . . . . . . . . . . . . Slashing 15622 | . . . . . 34 1209 546 . 792 1093 1016 . 1785 1606 . 1124 2333 973 3111 Piercing . | . . . . . . . . . . . . . . . . . . . . Highest Corruption 5 | . . . . . 5 5 5 5 . . . . . 1 . . . 1 . Average Corruption 4 | . . . . . 5 5 5 5 . . . . . 1 . . . 1 . Corruption Purged 3 | . . . . . . . . . . . . . . 1 . . . 2 . Corruption Blocked . | . . . . . . . . . . . . . . . . . . . . Effects 67 | . . . . . 3 20 10 34 . . . . . . . . . . . Message Errors 23 | . . . . . 2 7 4 10 . . . . . . . . . . . Matter Fused 14 | . . . . . . 4 1 9 . . . . . . . . . . . Heat Flow Errors 4 | . . . . . . . 1 3 . . . . . . . . . . . Energy Discharges 7 | . . . . . . 2 . 5 . . . . . . . . . . . Parts Rejected 1 | . . . . . . 1 . . . . . . . . . . . . . Parts Fused 2 | . . . . . . . . 2 . . . . . . . . . . . Data Loss (minor) 5 | . . . . . . 2 . 3 . . . . . . . . . . . Data Loss (major) 3 | . . . . . . 2 . 1 . . . . . . . . . . . Alerts 8 | . . . . . 1 2 4 1 . . . . . . . . . . . Overload Shots . | . . . . . . . . . . . . . . . . . . . . Overflow Damage 970 | . . 5 . . 5 22 95 . 19 152 88 . 174 116 . 82 149 . 63 Projectiles 10 | . . 5 . . 5 . . . . . . . . . . . . . . Explosions 123 | . . . . . . . . . . . 52 . 71 . . . . . . Melee 837 | . . . . . . 22 95 . 19 152 36 . 103 116 . 82 149 . 63 Knockbacks . | . . . . . . . . . . . . . . . . . . . . Impact . | . . . . . . . . . . . . . . . . . . . . Kinetic . | . . . . . . . . . . . . . . . . . . . . Secondary . | . . . . . . . . . . . . . . . . . . . . Self-Inflicted Damage 22 | . . . . . . . . . . . . . 22 . . . . . . Shots 1 | . . . . . . . . . . . . . 1 . . . . . . Rammed . | . . . . . . . . . . . . . . . . . . . . Targets Rammed . | . . . . . . . . . . . . . . . . . . . . Kicked . | . . . . . . . . . . . . . . . . . . . . Crushed . | . . . . . . . . . . . . . . . . . . . . Highest Temperature 424 | . 144 30 . 15 18 23 424 272 13 4 20 . 39 188 . 28 10 8 47 Average Temperature 81 | . 74 13 . 11 6 6 161 141 6 2 10 . 15 74 . 4 6 6 12 Received Heat Transfer 1148 | . 30 42 . 18 36 252 27 . 132 84 54 . 102 36 . 36 110 27 162 Effects 7 | . . . . . . . 5 2 . . . . . . . . . . . Shutdowns 2 | . . . . . . . 2 . . . . . . . . . . . . Energy Bleed 2 | . . . . . . . . 2 . . . . . . . . . . . Interference 3 | . . . . . . . 3 . . . . . . . . . . . . Siege Activations . | . . . . . . . . . . . . . . . . . . . . Robots Corrupted . | . . . . . . . . . . . . . . . . . . . . Combat Hostiles . | . . . . . . . . . . . . . . . . . . . . Parts Fried . | . . . . . . . . . . . . . . . . . . . . Impact Corruptions . | . . . . . . . . . . . . . . . . . . . . Robots Melted . | . . . . . . . . . . . . . . . . . . . . Combat Hostiles . | . . . . . . . . . . . . . . . . . . . . Parts Melted 2 | . 1 . . . . . . . . . . . . . . . . . 1 Heat Transferred 827 | . 198 407 . 111 111 . . . . . . . . . . . . . . Parts Sabotaged . | . . . . . . . . . . . . . . . . . . . . Parts Stolen . | . . . . . . . . . . . . . . . . . . . . Parts Stripped . | . . . . . . . . . . . . . . . . . . . . Power Chain Reactions 1 | . 1 . . . . . . . . . . . . . . . . . . Alert | -11 -10 -10 -10 -9 -8 -8 -8 -8 -6 -6 -6 -6 -5 -5 -5 -5 -4 -3 -2 ------- Run | Yrd Mat Min Exi Min Mat Sto Rec Scr Fac Low Low Zio Pro Fac Was Fac Fac Res Res Peak Influence 441 | . 45 174 . 50 146 289 169 . 76 . . . . 402 15 244 441 139 223 Initial 320 | . . 14 . . 16 1 95 . . . . . . 320 . 2 55 85 7 Average 94 | . 25 59 . 9 38 115 147 . 26 . . . . 104 8 81 192 80 75 Maximum Alert Level 2 | . . . . . . 1 . . . . . . . 2 . 1 2 . 1 Low Security (%) 86 | 100 100 100 . 100 100 88 100 . 100 . . . . 76 100 91 51 100 98 Level 1 12 | . . . . . . 11 . . . . . . . 18 . 8 47 . 1 Level 2 1 | . . . . . . . . . . . . . . 5 . . . . . Level 3 . | . . . . . . . . . . . . . . . . . . . . Level 4 . | . . . . . . . . . . . . . . . . . . . . Level 5 . | . . . . . . . . . . . . . . . . . . . . High Security . | . . . . . . . . . . . . . . . . . . . . Max Security . | . . . . . . . . . . . . . . . . . . . . Squads Dispatched 20 | . . 1 . . . 3 . . 1 . . . . 4 . . 3 2 6 Investigation 2 | . . 1 . . . . . . . . . . . . . . 1 . . Extermination 9 | . . . . . . . . . 1 . . . . 3 . . 1 1 3 Reinforcement 9 | . . . . . . 3 . . . . . . . 1 . . 1 1 3 Assault . | . . . . . . . . . . . . . . . . . . . . Garrison . | . . . . . . . . . . . . . . . . . . . . Intercept . | . . . . . . . . . . . . . . . . . . . . Searches Triggered 1 | . . . . . . . . . . . . . . 1 . . . . . Construction Impeded . | . . . . . . . . . . . . . . . . . . . . Haulers Reinforced . | . . . . . . . . . . . . . . . . . . . . Active Scanning Responses . | . . . . . . . . . . . . . . . . . . . . Cargo Convoy Interrupts . | . . . . . . . . . . . . . . . . . . . . Stealth | -11 -10 -10 -10 -9 -8 -8 -8 -8 -6 -6 -6 -6 -5 -5 -5 -5 -4 -3 -2 --------- Run | Yrd Mat Min Exi Min Mat Sto Rec Scr Fac Low Low Zio Pro Fac Was Fac Fac Res Res Distress Signals 6 | . . . . . . 1 . . 1 . . . . . . . 2 1 1 Communications Jammed 16 | . . . . . . . . . . . . . 2 2 . 4 8 . . Distress Signals 13 | . . . . . . . . . . . . . . 2 . 4 7 . . Times Spotted 163 | . 2 7 . 2 6 12 2 . 6 6 10 . 23 10 6 14 24 13 20 Peak Tracking Total 8 | . 2 3 . 2 4 5 1 . 3 1 3 . 8 2 6 3 4 2 3 Tactical Retreats 18 | . . 2 . . . 2 . . . 1 . . 3 . . 2 5 3 . Traps | -11 -10 -10 -10 -9 -8 -8 -8 -8 -6 -6 -6 -6 -5 -5 -5 -5 -4 -3 -2 ------- Run | Yrd Mat Min Exi Min Mat Sto Rec Scr Fac Low Low Zio Pro Fac Was Fac Fac Res Res Traps Triggered 9 | . 1 . . . . 1 . . 2 . . . . 2 . 2 1 . . Indirectly . | . . . . . . . . . . . . . . . . . . . . Trap Hack Attempts . | . . . . . . . . . . . . . . . . . . . . Triggered . | . . . . . . . . . . . . . . . . . . . . Disarmed . | . . . . . . . . . . . . . . . . . . . . Reprogrammed . | . . . . . . . . . . . . . . . . . . . . Reused . | . . . . . . . . . . . . . . . . . . . . Traps Extracted . | . . . . . . . . . . . . . . . . . . . . Installed . | . . . . . . . . . . . . . . . . . . . . Triggered 2 | . . . . . . . . . . . 1 . 1 . . . . . . Machines | -11 -10 -10 -10 -9 -8 -8 -8 -8 -6 -6 -6 -6 -5 -5 -5 -5 -4 -3 -2 ---------- Run | Yrd Mat Min Exi Min Mat Sto Rec Scr Fac Low Low Zio Pro Fac Was Fac Fac Res Res Machines Disabled 3 | . . . . . . 2 . . . 1 . . . . . . . . . Max in Single Turn 1 | . . . . . . 1 . . . 1 . . . . . . . . . Garrison Access 8 | . . . . . . . . . 1 . . . . 1 . 2 3 1 . Machines Repaired . | . . . . . . . . . . . . . . . . . . . . Machines Dismantled . | . . . . . . . . . . . . . . . . . . . . Machines Sabotaged . | . . . . . . . . . . . . . . . . . . . . Overloaded Fab Kills . | . . . . . . . . . . . . . . . . . . . . Hacking | -11 -10 -10 -10 -9 -8 -8 -8 -8 -6 -6 -6 -6 -5 -5 -5 -5 -4 -3 -2 --------- Run | Yrd Mat Min Exi Min Mat Sto Rec Scr Fac Low Low Zio Pro Fac Was Fac Fac Res Res Machines Accessed 84 | . 3 1 1 . 3 7 5 1 8 1 . . . 17 . 15 14 4 4 Terminals 43 | . 3 . . . 3 6 2 . 3 . . . . 7 . 7 8 1 3 Fabricators 4 | . . . . . . . . . 1 . . . . 1 . . 1 1 . Repair Stations 4 | . . . . . . . . . . . . . . 1 . 1 1 . 1 Recycling Units 16 | . . . . . . 1 3 . 2 . . . . 4 . 4 1 1 . Scanalyzers 4 | . . . . . . . . . 1 . . . . 2 . 1 . . . Garrison Access 9 | . . . . . . . . . 1 . . . . 2 . 2 3 1 . Total Hacks 303 | . 7 1 1 . 13 33 17 9 21 1 . . . 61 . 61 47 8 23 Successful 209 | . 5 1 1 . 7 20 13 9 17 1 . . . 44 . 39 31 6 15 Failed 93 | . 2 . . . 6 13 4 . 4 . . . . 16 . 22 16 2 8 Catastrophic 6 | . . . . . . 2 . . . . . . . 1 . . 3 . . Database Lockouts 1 | . . . . . . . . . . . . . . 1 . . . . . Manual 156 | . 3 . 1 . 11 21 12 . 11 . . . . 27 . 35 22 1 12 Terminals 218 | . 7 . . . 13 32 8 . 13 . . . . 41 . 47 33 5 19 Fabricators 7 | . . . . . . . . . 1 . . . . 1 . . 4 1 . Repair Stations 12 | . . . . . . . . . . . . . . 4 . 2 2 . 4 Recycling Units 31 | . . . . . . 1 9 . 4 . . . . 7 . 7 2 1 . Scanalyzers 7 | . . . . . . . . . 1 . . . . 5 . 1 . . . Garrison Access 16 | . . . . . . . . . 2 . . . . 3 . 4 6 1 . Terminal Hacks 98 | . 3 1 1 . 3 11 3 9 6 1 . . . 18 . 19 13 2 8 Record 9 | . . . . . . . . 9 . . . . . . . . . . . Robot Analysis 9 | . . . . . . 1 . . . . . . . 2 . 3 . . 3 Prototype ID Bank 7 | . . . . . . . . . 1 . . . . 2 . . 3 . 1 Open Door 4 | . . 1 . . . 1 . . . 1 . . . . . . 1 . . Level Access Points 3 | . . . . . . . . . . . . . . 1 . 1 1 . . Branch Access Points 7 | . . . . . 1 1 . . 1 . . . . 1 . 1 1 . 1 Emergency Access Points 1 | . 1 . . . . . . . . . . . . . . . . . . Machine Index 2 | . . . . . . . . . . . . . . . . 1 1 . . Terminal Index 6 | . . . . . . 1 1 . 1 . . . . 1 . 1 . 1 . Fabricator Index 1 | . . . . . . . . . . . . . . . . 1 . . . Scanalyzer Index 2 | . . . . . . . 1 . . . . . . . . 1 . . . Garrison Index 2 | . . . . . . . . . . . . . . 1 . 1 . . . Alert Level 13 | . . . . . . 1 1 . 1 . . . . 3 . 3 2 1 1 Unreport Threat 4 | . . . . . . . . . . . . . . 2 . 1 1 . . Locate Traps 16 | . 2 . . . 1 1 . . 2 . . . . 3 . 3 2 . 2 Security Status 1 | . . . . . . 1 . . . . . . . . . . . . . Patrol Status 1 | . . . . . . 1 . . . . . . . . . . . . . Reinforcement Status 1 | . . . . . . 1 . . . . . . . . . . . . . Hauler Manifests 1 | . . . . . . 1 . . . . . . . . . . . . . Registered Components 4 | . . . . . . 1 . . . . . . . 1 . 1 1 . . Registered Prototypes 1 | . . . . . 1 . . . . . . . . . . . . . . Zone Layout 2 | . . . . . . . . . . . . . . 1 . 1 . . . Derelict Proto ID Bank 1 | . . . 1 . . . . . . . . . . . . . . . . Fabricator Hacks 6 | . . . . . . . . . 1 . . . . 1 . . 3 1 . Network Status 4 | . . . . . . . . . 1 . . . . 1 . . 1 1 . Load Schematic 1 | . . . . . . . . . . . . . . . . . 1 . . Build 1 | . . . . . . . . . . . . . . . . . 1 . . Repair Station Hacks 10 | . . . . . . . . . . . . . . 4 . 2 2 . 2 Scan Component 5 | . . . . . . . . . . . . . . 2 . 1 1 . 1 Repair 5 | . . . . . . . . . . . . . . 2 . 1 1 . 1 Recycling Unit Hacks 23 | . . . . . . 1 5 . 3 . . . . 7 . 5 1 1 . Report Inventory 16 | . . . . . . 1 3 . 2 . . . . 4 . 4 1 1 . Retrieve Components 7 | . . . . . . . 2 . 1 . . . . 3 . 1 . . . Scanalyzer 6 | . . . . . . . . . 1 . . . . 4 . 1 . . . Insert Component 5 | . . . . . . . . . 1 . . . . 3 . 1 . . . Analyze 1 | . . . . . . . . . . . . . . 1 . . . . . Garrison Access Hacks 8 | . . . . . . . . . 1 . . . . 1 . 2 3 1 . Seal Access 8 | . . . . . . . . . 1 . . . . 1 . 2 3 1 . Unauthorized Hacks 58 | . 2 . . . 4 8 5 . 5 . . . . 9 . 10 9 1 5 Terminals 51 | . 2 . . . 4 8 1 . 4 . . . . 9 . 9 8 1 5 Track 18 | . . . . . 1 2 . . . . . . . 4 . 5 4 . 2 Assimilate 3 | . . . . . 1 1 . . . . . . . 1 . . . . . Botnet 25 | . 2 . . . 2 4 1 . 3 . . . . 3 . 3 3 1 3 Operators 5 | . . . . . . 1 . . 1 . . . . 1 . 1 1 . . Fabricators . | . . . . . . . . . . . . . . . . . . . . Repair Stations . | . . . . . . . . . . . . . . . . . . . . Recycling Units 7 | . . . . . . . 4 . 1 . . . . . . 1 1 . . Reject 3 | . . . . . . . 3 . . . . . . . . . . . . Recyclers 4 | . . . . . . . 1 . 1 . . . . . . 1 1 . . Scanalyzers . | . . . . . . . . . . . . . . . . . . . . Garrison Access . | . . . . . . . . . . . . . . . . . . . . Data Cores Recovered . | . . . . . . . . . . . . . . . . . . . . Used . | . . . . . . . . . . . . . . . . . . . . Hacking Detections 52 | . 2 . . . 3 7 1 . 6 . . . . 12 . 8 8 1 4 Full Trace Events 1 | . . . . . . . . . . . . . . . . . 1 . . Feedback Events . | . . . . . . . . . . . . . . . . . . . . Feedback Blocked . | . . . . . . . . . . . . . . . . . . . . Robot Schematics Acquired . | . . . . . . . . . . . . . . . . . . . . Robots Built . | . . . . . . . . . . . . . . . . . . . . Authchips . | . . . . . . . . . . . . . . . . . . . . Time . | . . . . . . . . . . . . . . . . . . . . Total Robot Build Rating . | . . . . . . . . . . . . . . . . . . . . Part Schematics Acquired 1 | . . . . . . . . . . . . . . 1 . . . . . Parts Built 2 | . . . . . . . . . . . . . . . . . 2 . . Authchips . | . . . . . . . . . . . . . . . . . . . . Time 58 | . . . . . . . . . . . . . . . . . 58 . . Total Part Build Rating 14 | . . . . . . . . . . . . . . . . . 14 . . Parts Repaired 5 | . . . . . . . . . . . . . . 2 . 1 1 . 1 Time 221 | . . . . . . . . . . . . . . 124 . 50 31 . 16 Parts Recycled . | . . . . . . . . . . . . . . . . . . . . Recycled Matter . | . . . . . . . . . . . . . . . . . . . . Retrieved Matter . | . . . . . . . . . . . . . . . . . . . . Retrieved Components 19 | . . . . . . . 6 . 2 . . . . 8 . 3 . . . Parts Scanalyzed 1 | . . . . . . . . . . . . . . 1 . . . . . Part Schematics Acquired 1 | . . . . . . . . . . . . . . 1 . . . . . Parts Damaged . | . . . . . . . . . . . . . . . . . . . . Bothacking | -11 -10 -10 -10 -9 -8 -8 -8 -8 -6 -6 -6 -6 -5 -5 -5 -5 -4 -3 -2 ------------ Run | Yrd Mat Min Exi Min Mat Sto Rec Scr Fac Low Low Zio Pro Fac Was Fac Fac Res Res Used RIF Installer . | . . . . . . . . . . . . . . . . . . . . Robots Hacked 1 | . . . . . . . . . 1 . . . . . . . . . . Non-combat 1 | . . . . . . . . . 1 . . . . . . . . . . Combat . | . . . . . . . . . . . . . . . . . . . . Robot Hacks Applied 1 | . . . . . . . . . 1 . . . . . . . . . . parse_system 1 | . . . . . . . . . 1 . . . . . . . . . . Relay Couplers Released . | . . . . . . . . . . . . . . . . . . . . Fabnet Peak Effective % . | . . . . . . . . . . . . . . . . . . . . Robots Rewired 12 | . . . . . . . 8 . . 2 . . 2 . . . . . . Allies Hacked . | . . . . . . . . . . . . . . . . . . . . Hacks Repelled . | . . . . . . . . . . . . . . . . . . . . Allies | -11 -10 -10 -10 -9 -8 -8 -8 -8 -6 -6 -6 -6 -5 -5 -5 -5 -4 -3 -2 -------- Run | Yrd Mat Min Exi Min Mat Sto Rec Scr Fac Low Low Zio Pro Fac Was Fac Fac Res Res Total Allies 13 | . . . . . . . 8 . . 2 . . 2 1 . . . . . Largest Group 8 | . . . . . . . 8 8 7 2 2 . 2 1 . . . . . Highest-Rated Group 86 | . . . . . . . 86 86 77 62 62 . 60 10 . . . . . Highest-Rated Ally 31 | . . . . . . . 21 21 21 31 31 . 30 10 . . . . . Total Orders 2 | . . . . . . . 1 . 1 . . . . . . . . . . STAY 1 | . . . . . . . . . 1 . . . . . . . . . . DROP 1 | . . . . . . . 1 . . . . . . . . . . . . Ally Attacks 33 | . . . . . . . 1 . 2 . 25 . 5 . . . . . . Total Damage 620 | . . . . . . . 8 . 19 . 476 . 117 . . . . . . Kills 3 | . . . . . . . . . . . 2 . 1 . . . . . . Allies Corrupted . | . . . . . . . . . . . . . . . . . . . . Allies Melted . | . . . . . . . . . . . . . . . . . . . . Intel | -11 -10 -10 -10 -9 -8 -8 -8 -8 -6 -6 -6 -6 -5 -5 -5 -5 -4 -3 -2 ------- Run | Yrd Mat Min Exi Min Mat Sto Rec Scr Fac Low Low Zio Pro Fac Was Fac Fac Res Res Robot Analysis Total 9 | . . . . . . 1 . . . . . . . 2 . 3 . . 3 Derelict Logs Recovered 4 | . . 1 . . . . . . . 1 . . 2 . . . . . . Drone Launches . | . . . . . . . . . . . . . . . . . . . . Drone Recoveries . | . . . . . . . . . . . . . . . . . . . . Decoded 0b10 Intel 213 | . . . . . . . . . . . . . . 43 3 19 58 55 35 Traps 28 | . . . . . . . . . . . . . . 3 . 1 10 6 8 Emergency Access 37 | . . . . . . . . . . . . . . . . 1 11 20 5 Items 120 | . . . . . . . . . . . . . . 37 3 14 31 21 14 Machines 9 | . . . . . . . . . . . . . . 3 . 2 . 2 2 Garrisons 1 | . . . . . . . . . . . . . . . . . . 1 . Patrols 5 | . . . . . . . . . . . . . . . . . 2 1 2 Guards 11 | . . . . . . . . . . . . . . . . 1 4 2 4 Exits 2 | . . . . . . . . . . . . . . . . . . 2 . Exploration | -11 -10 -10 -10 -9 -8 -8 -8 -8 -6 -6 -6 -6 -5 -5 -5 -5 -4 -3 -2 ------------- Run | Yrd Mat Min Exi Min Mat Sto Rec Scr Fac Low Low Zio Pro Fac Was Fac Fac Res Res Turns Passed 13893 | 17 203 318 221 163 596 748 349 1421 1129 822 666 219 966 1695 72 758 1476 1272 782 Spaces Moved 13994 | 13 185 297 231 135 321 502 567 1416 891 669 560 205 779 1904 97 1546 1778 1226 672 Core 12 | . . . . . . . 12 . . . . . . . . . . . . Treads 67 | . . . . . 67 . . . . . . . . . . . . . . Legs 5 | 5 . . . . . . . . . . . . . . . . . . . Wheels 3452 | 8 185 297 231 135 164 . . . . . . . . . . . 534 1226 672 Hover 7558 | . . . . . . . . . 554 669 560 205 779 1904 97 1546 1244 . . Flight 2900 | . . . . . 90 502 555 1416 337 . . . . . . . . . . Fastest Speed 29 | 80 80 80 95 95 95 106 29 29 105 105 105 105 105 38 46 35 35 90 90 Average Speed 80 | 95 80 82 95 95 130 111 32 99 105 105 105 105 105 70 72 39 56 90 90 Slowest Speed 380 | 120 80 95 95 95 380 114 150 106 110 105 105 105 105 113 108 43 110 90 90 Overloaded Moves . | . . . . . . . . . . . . . . . . . . . . Propulsion Burnouts . | . . . . . . . . . . . . . . . . . . . . Robots Hopped 3 | . . . . . . . 3 . . . . . . . . . . . . Cave-ins Triggered 2 | . . . . . . . . . . . . . . . . . . 2 . Exploration Rate (%) 47 | 2 37 55 65 29 32 68 81 60 20 92 71 11 86 43 81 39 38 28 17 Regions Visited 19 Branch Regions 10 Pre-discovered Areas 2 | . . 1 . . . . . . . . . . 1 . . . . . . Known Exits Taken 6 | . . . . . 1 1 . . 1 . . . . . . 1 1 1 . Unknown Exits Taken 11 | 1 1 1 1 1 . . 1 1 . 1 1 1 1 . . . . . . Scrap Searched 22 | . . 2 . 1 . . . 8 . 5 2 . 4 . . . . . . Spaces Dug 96 | . . . . . 10 2 . . 5 1 . . . 21 . 16 22 11 8 Terrain Destroyed 197 | . 5 . . . 10 2 . . 5 1 44 . 52 21 . 16 22 11 8 Melee 86 | . . . . . . 2 . . 5 1 . . . 21 . 16 22 11 8 Projectile 10 | . . . . . 10 . . . . . . . . . . . . . . AOE 101 | . 5 . . . . . . . . . 44 . 52 . . . . . . Terrain Rammed . | . . . . . . . . . . . . . . . . . . . . Walls Destroyed . | . . . . . . . . . . . . . . . . . . . . Machines Disabled . | . . . . . . . . . . . . . . . . . . . . Actions | -11 -10 -10 -10 -9 -8 -8 -8 -8 -6 -6 -6 -6 -5 -5 -5 -5 -4 -3 -2 --------- Run | Yrd Mat Min Exi Min Mat Sto Rec Scr Fac Low Low Zio Pro Fac Was Fac Fac Res Res Total 15950 | 16 230 352 231 163 480 641 716 1434 1049 756 609 209 872 2179 97 1646 2148 1353 769 Wait 1079 | . 34 23 . 24 105 78 103 13 87 30 11 . 21 149 1 48 250 64 38 Move 13970 | 12 184 296 230 134 320 501 560 1415 890 668 559 204 778 1904 96 1545 1777 1225 672 Hop 3 | . . . . . . . 3 . . . . . . . . . . . . Pick Up 42 | . 2 2 . . 2 1 . . 5 3 3 1 . 12 . 4 5 2 . Fast Attach 73 | 3 4 3 1 . 18 4 . 3 11 . . 1 . 7 . 6 7 4 1 Attach 15 | . . . . . 1 1 . . 1 . 1 1 . 3 . 1 4 2 . Detach 13 | 1 . . . . 1 2 . . 2 . . 1 . 2 . 1 3 . . Swap 43 | . . 2 . . . . . 1 7 2 2 . 2 11 . 2 6 7 1 Drop 97 | . 2 7 . . 14 1 . 2 17 3 2 1 . 20 . 7 13 7 1 Fire 36 | . 4 10 . 3 14 . . . . . 2 . 3 . . . . . . Melee 329 | . . . . . 1 29 6 . 20 18 16 . 29 48 . 32 61 23 46 Ram . | . . . . . . . . . . . . . . . . . . . . Kick . | . . . . . . . . . . . . . . . . . . . . Crush . | . . . . . . . . . . . . . . . . . . . . Escape Stasis 6 | . . . . . . . . . . . . . . . . . 6 . . Rewire 55 | . . . . . . . 40 . . 9 . . 6 . . . . . . Trap . | . . . . . . . . . . . . . . . . . . . . Miscellaneous 189 | . . 9 . 2 4 24 4 . 9 23 13 . 33 23 . . 16 19 10 Route ------- -11/Scrapyard -10/Materials (discovered 2 exits: [*Mat] / *Min) -10/Mines (discovered 2 exits: [*Mat] / *Exi) -10/Exiles -9/Mines -8/Materials (discovered 2 exits: *Sto x2) -8/Storage (discovered 2 exits: [*Fac] / *Rec) -8/Recycling (discovered 2 exits: *Fac / *Scr) -8/Scraptown -6/Factory (discovered 2 exits: *Low x2) -6/Lower Caves -6/Lower Caves -6/Zion -5/Proximity Caves -5/Factory (discovered 6 exits: *Fac x4 / *Upp x2) -5/Waste -5/Factory (discovered 6 exits: *Fac x4 / Upp x2) -4/Factory (discovered 9 exits: *Res x4 / *Upp x2 / *Ext x2 / Arm) -3/Research (discovered 3 exits: *Res x2 / [*Qua]) -2/Research (discovered 2 exits: Tes x2) History --------- Turn | Location | Event 1 | -11/Scrapyard | Upgraded with Propulsion slot (x1) 1 | -11/Scrapyard | Upgraded with Utility slot (x3) 1 | -11/Scrapyard | Upgraded with Weapon slot (x1) 1 | -11/Scrapyard | Discovered new exit (range 1) 18 | -11/Scrapyard | Entered Materials 62 | -10/Materials | Discovered new exit (range 7) 157 | -10/Materials | Discovered new exit (range 11) 221 | -10/Materials | Entered Mines 221 | -10/Mines | Discovered new exit (range 8) 244 | -10/Mines | Received a Rocket Launcher from a helpful Derelict 256 | -10/Mines | Met a Derelict bent on vengeance 327 | -10/Mines | Build established: Mutant 357 | -10/Mines | Deemed a non-threat by the Exiles lab entrance 357 | -10/Mines | Discovered new exit (range 5) 391 | -10/Mines | Learned location of Mines (-9) 436 | -10/Mines | Met a Derelict shopkeep closing up shop 539 | -10/Mines | Entered Exiles 563 | -10/Exiles | Met 8R-AWN 578 | -10/Exiles | Met EX-HEX 606 | -10/Exiles | Met EX-BIN 623 | -10/Exiles | Reached level 2 623 | -10/Exiles | Aligned with FarCom system 624 | -10/Exiles | Given EX-Vault access code 647 | -10/Exiles | Opened EX-Vault 654 | -10/Exiles | Upgraded with Utility slot (x1) 654 | -10/Exiles | Found Cloak of Protection 675 | -10/Exiles | Warned to stay clear of 0b10 Research branches 703 | -10/Exiles | Met EX-DEC 750 | -10/Exiles | Discovered new exit (range 12) 760 | -10/Exiles | Left Exiles lab with Cloak of Protection 760 | -10/Exiles | Entered Mines 769 | -9/Mines | Discovered new exit (range 4) 923 | -9/Mines | Entered Materials 925 | -8/Materials | Reached level 3 925 | -8/Materials | Reached level 4 925 | -8/Materials | Reached level 5 925 | -8/Materials | Reached level 6 943 | -8/Materials | Upgraded with Utility slot (x3) 1021 | -8/Materials | Discovered new exit (range 4) 1298 | -8/Materials | Discovered new exit (range 10) 1426 | -8/Materials | Reached level 7 1426 | -8/Materials | Identified exit to Storage 1426 | -8/Materials | Upgraded with Propulsion slot (x1) 1492 | -8/Materials | Upgraded with Weapon slot (x1) 1519 | -8/Materials | Entered Storage 1570 | -8/Storage | Build established: Hacker-Gladiator 1695 | -8/Storage | Reached level 8 1794 | -8/Storage | Upgraded with Propulsion slot (x1) 1868 | -8/Storage | Identified exit to Recycling 1903 | -8/Storage | Discovered new exit (range 5) 2263 | -8/Storage | Used back door to open Recycling access 2267 | -8/Storage | Entered Recycling 2269 | -8/Recycling | Reached level 9 2280 | -8/Recycling | Upgraded with Power slot (x1) 2473 | -8/Recycling | Discovered new exit (range 16) 2487 | -8/Recycling | Scanned before Scraplab entrance 2491 | -8/Recycling | Entered Scraplab 2493 | -8/Recycling | Discovered new exit (range 2) 2616 | -8/Recycling | Entered Scraptown 2616 | -8/Scraptown | Accompanied by 8 allies 2618 | -8/Scraptown | Reached level 10 2644 | -8/Scraptown | Heard Great Nut preacher, LISTEN AND RECITE! 2650 | -8/Scraptown | Upgraded with Propulsion slot (x1) 2763 | -8/Scraptown | Discovered new exit (range 5) 2850 | -8/Scraptown | Visited Spacefarers 2912 | -8/Scraptown | Visited Assassins FH 2933 | -8/Scraptown | Visited Bundlers 2943 | -8/Scraptown | Build established: Commander-Gladiator 2990 | -8/Scraptown | Visited The Evicted 3166 | -8/Scraptown | Visited IN-MT5's Study 3195 | -8/Scraptown | Turned away by UFD registrar 3210 | -8/Scraptown | Visited Fellowship of the Rings 4037 | -8/Scraptown | Entered Factory 4037 | -6/Factory | Accompanied by 7 allies 4039 | -6/Factory | Reached level 11 4039 | -6/Factory | Reached level 12 4039 | -6/Factory | Upgraded with Utility slot (x1) 4140 | -6/Factory | Lost 5 allies 4144 | -6/Factory | Identified exit to Lower Caves 4397 | -6/Factory | Build established: Hacker-Gladiator 5166 | -6/Factory | Entered Lower Caves 5168 | -6/Lower Caves | Reached level 13 5379 | -6/Lower Caves | Encountered a Warlord checkpoint 5508 | -6/Lower Caves | Learned 4 Factory zone layouts 5546 | -6/Lower Caves | Attracted the attention of an 0b10 checkpoint 5783 | -6/Lower Caves | Discovered new exit (range 10) 5919 | -6/Lower Caves | Attacked by a delusional Derelict stockpiling Unaware 5988 | -6/Lower Caves | Entered another Lower Caves area 5988 | -6/Lower Caves | Accompanied by 2 allies 6014 | -6/Lower Caves | Spotted B-75 Beast 6049 | -6/Lower Caves | Allies destroyed B-75 Beast 6115 | -6/Lower Caves | Encountered a Warlord checkpoint 6179 | -6/Lower Caves | Reached level 14 6184 | -6/Lower Caves | Upgraded with Weapon slot (x1) 6646 | -6/Lower Caves | Discovered new exit (range 6) 6654 | -6/Lower Caves | Entered Zion 6753 | -6/Zion | Discovered new exit (range 16) 6835 | -6/Zion | Given A8's code to call for help 6873 | -6/Zion | Entered Proximity Caves 6875 | -5/Proximity Caves | Reached level 15 6879 | -5/Proximity Caves | Spotter reported a threat 6881 | -5/Proximity Caves | Spotter reported a threat 6895 | -5/Proximity Caves | Reached level 16 6960 | -5/Proximity Caves | Learned location of Armory (-4) 6978 | -5/Proximity Caves | Learned Factory emergency access door positions 7045 | -5/Proximity Caves | Attracted the attention of an 0b10 outpost 7079 | -5/Proximity Caves | Core integrity fell below 50% 7178 | -5/Proximity Caves | Reached level 17 7521 | -5/Proximity Caves | Attracted the attention of an 0b10 checkpoint 7657 | -5/Proximity Caves | Upgraded with Utility slot (x1) 7684 | -5/Proximity Caves | Received a Behemoth hack from an annoying Tinkerer 7719 | -5/Proximity Caves | Discovered new exit (range 15) 7805 | -5/Proximity Caves | Spotted B-75 Beast 7839 | -5/Proximity Caves | Entered Factory 7840 | -5/Factory | Identified exit to Upper Caves 7841 | -5/Factory | Reached level 18 8029 | -5/Factory | Discovered new exit (range 6) 8139 | -5/Factory | Search patrols dispatched 8341 | -5/Factory | Discovered exit to Upper Caves (range 9) 8428 | -5/Factory | Identified exit to Factory 8428 | -5/Factory | Central database locked down 9250 | -5/Factory | Repaired Centrium Wheel 9313 | -5/Factory | Repaired Centrium Wheel 9374 | -5/Factory | Reached level 19 9534 | -5/Factory | Sucked down chute 9534 | -5/Factory | Entered Waste 9546 | -5/Waste | Spotted C-40 Crusher 9549 | -5/Waste | EMP discharged 9549 | -5/Waste | Spotted C-40 Crusher 9581 | -5/Waste | Crushed by Compactor (1 part destroyed, 2 dropped) 9582 | -5/Waste | Spotted C-40 Crusher 9589 | -5/Waste | Spotted C-40 Crusher 9591 | -5/Waste | Spotted C-40 Crusher 9591 | -5/Waste | Spotted C-40 Crusher 9602 | -5/Waste | Discovered new exit (range 10) 9606 | -5/Waste | Entered Factory 9749 | -5/Factory | Repaired Imp. Reaction Control System 10364 | -5/Factory | Entered another Factory area 10366 | -4/Factory | Reached level 20 10374 | -4/Factory | Upgraded with Power slot (x1) 10407 | -4/Factory | Identified exit to Upper Caves 10407 | -4/Factory | Identified exit to Extension 10407 | -4/Factory | Identified exit to Armory 10727 | -4/Factory | Reached level 21 10801 | -4/Factory | Discovered new exit (range 11) 10999 | -4/Factory | Identified exit to Research 11362 | -4/Factory | Fabricated Centrium Wheel? 11372 | -4/Factory | Repaired Adv. Reaction Control System? 11686 | -4/Factory | Reached level 22 11840 | -4/Factory | Entered Research 11842 | -3/Research | Reached level 23 11965 | -3/Research | Crushed by falling debris 12098 | -3/Research | Identified exit to Research 12421 | -3/Research | Discovered new exit (range 16) 12545 | -3/Research | Build established: Wizard-Gladiator 12694 | -3/Research | Reached level 24 12709 | -3/Research | Upgraded with Weapon slot (x1) 12773 | -3/Research | Crushed by falling debris 13112 | -3/Research | Entered another Research area 13114 | -2/Research | Reached level 25 13396 | -2/Research | Repaired Lyr. Medium Armor Plating 13435 | -2/Research | Identified exit to Testing 13476 | -2/Research | Reached level 26 13483 | -2/Research | Core integrity fell below 50% 13789 | -2/Research | Core integrity fell below 20% 13894 | -2/Research | Destroyed by G-73 Enforcer with Heavy Laser Last Messages --------------- 13862_ ALERT: Rogue bot located, Programmers report to Research Zone 1L. 13862_ Plasma Sword follow-up attack on G-73 Enforcer. 13862_ G-73 Enforcer destroyed. 13866_ G-73 Enforcer Myomer Leg severed. 13871_ Phasing Sabre follow-up attack on G-73 Enforcer. 13874_ G-73 Enforcer Hvy. Laser severed. 13874_ Plasma Sword follow-up attack on G-73 Enforcer. 13874_ G-73 Enforcer Myomer Leg severed. 13876_ Phasing Sabre follow-up attack on G-73 Enforcer. 13878_ >> DECODED: Prototype Ballistic Cannon location. 13879_ Plasma Sword follow-up attack on G-73 Enforcer. 13879_ Phasing Sabre follow-up attack on G-73 Enforcer. 13879_ G-73 Enforcer destroyed. 13884_ G-73 Enforcer Myomer Leg severed. 13884_ Plasma Sword follow-up attack on G-73 Enforcer. 13884_ Destroyed Adv. Heat Sink. 13887_ Plasma Sword follow-up attack on G-73 Enforcer. 13890_ G-73 Enforcer Myomer Leg severed. 13892_ Unknown Energy Gun melted. 13892_ G-73 Enforcer destroyed. Map ----- +----------------------------------------------------+ | ??>??????????????????????????????????]???????????? | | ?????????????????????????????????????????????????? | | ?????????????????????????????????????????????????? | | ??????????????# ##############+#????????? | | ??????????????# =!!%=%= ??? | | ?????????????????????################## #????????? | | ?????????????????????????# !=! # #??####### | | ?????????????????????????# ]! / #??# | | ????????????????????????## "" """ # #??# | | ????????????????????????## "T """ # #### | | ????????????????????????## "" """ # # """" | | ????^????????????????????# + [#= """" | | ?????????????????????????# # =%#! """" | | ?????????????????????????# """ """ + !=+%= | | ?????????????????????????# """ """ # |#=| | | ?????????????????????????# """ """ # %####### | | ?????????????????????????# w # # | | ??????????????????????##?# # # | | ????????#####?????????######+#####/#### # | | ???????? ?????????# # #??# # | | ?????????? ????????# ! # #??# + ] | | ??????????? ????????# [! ] # #??# # | | ????????????? ???????#! %=% # #??# # | | ??????????????# ###########+###### #### # | | ??????????????# %%[=* u ###+### | | ??????????????# @==[ # ## | | ??????????????#o A==% # + | | ??????????????# g%* #[ #^ | | ??????????????# ###################### # | | ??????????????# ###########??????????# # | | ??????????????# # #??????????# # | | ??????????????# # #??????????# # | | ??????????????# !#= #??????????# + | | ??????????????# =|# * #??????????# # | | ??????????????# !!+ %"T" ################# | | ??????????????# %#%!""" + | | ####??????????# =#= ##### | | ############ # #???# | | # ###########???# | | " # #?????????????# #####+### | | " # #?????????????# #?? ? | | " + ###########???# #?# | | # ###########+#### = #???# #?# * | | # #????# # #???# #?# | | #^ ^#????# # """ #???# #?# | | #^^^^#????# """" # """ #???# #?# | | ##"# #???##= "S"" # R" ##### ######### | | # #???#%%[ "" # """ + | | + #???##!* # "" ############## ### | | " # #????# = # #????????????# #?# | +----------------------------------------------------+ Best States ------------- Heat Dissipation 74 Energy Generation 51 Energy Capacity 340 Matter Stores 472 Matter Capacity 500 Sight Range 18 Robot Scan Range 6 Terrain Scan Density 110 Jamming Range 16 Cloak Strength 5 EM Shielding 3 Armor Coverage 375 Resistance: KI 40 Resistance: TH 40 Resistance: EX 20 Resistance: EM 20 Resistance: I 20 Resistance: S 20 Resistance: P 20 Weapon Shielding 33 Evasion (%) 72 Melee Accuracy 5 Armor Integrity Analysis 30 Recoil Reduction 2 Offensive Hacking 44 Defensive Hacking 29 Item Schematics ----------------- Centrium Wheel | -5/Factory | Scanalyzed Robot Schematics ------------------ None Fabricated ------------ Centrium Wheel | x2 | -4/Factory Alien Tech Used ----------------- None Achievements -------------- None Challenges ------------ None RPGLIKE | -11 -10 -10 -10 -9 -8 -8 -8 -8 -6 -6 -6 -6 -5 -5 -5 -5 -4 -3 -2 --------- Run | Yrd Mat Min Exi Min Mat Sto Rec Scr Fac Low Low Zio Pro Fac Was Fac Fac Res Res Levels Raised 25 | . . . 1 . 5 1 1 1 2 1 1 . 3 2 . . 3 2 2 XP Earned 42635 | 4000 100 1050 350 1262 6246 2740 1350 500 4072 1099 1406 500 3747 2748 200 945 3576 2690 4054 XP Spent 41465 | 3850 . . 1400 . 7700 1550 1150 1470 3100 1775 1300 . 4150 2035 . 1465 4515 2960 3045 Upgrades 63 | 7 . . 1 . 6 5 3 2 2 3 2 . 2 3 . 8 8 5 6 Power Slot 2 | . . . . . . . 1 . . . . . . . . . 1 . . Propulsion Slot 4 | 1 . . . . 1 1 . 1 . . . . . . . . . . . Utility Slot 9 | 3 . . 1 . 3 . . . 1 . . . 1 . . . . . . Weapon Slot 4 | 1 . . . . 1 . . . . . 1 . . . . . . 1 . Core Integrity 8 | . . . . . . . . . . 1 . . . 1 . 2 1 2 1 Heat Dissipation 3 | . . . . . . . 1 1 . . . . . . . 1 . . . Mass Support 2 | . . . . . 1 . 1 . . . . . . . . . . . . Inventory Capacity 7 | 1 . . . . . . . . 1 2 . . 1 1 . . 1 . . Sight Range 1 | . . . . . . . . . . . . . . . . . . . 1 Sensor Range 3 | . . . . . . 1 . . . . . . . . . 1 1 . . Terrain Scan Density 1 | . . . . . . 1 . . . . . . . . . . . . . Melee Accuracy 4 | . . . . . . . . . . . 1 . . . . 1 2 . . Hack Attack % 4 | . . . . . . 1 . . . . . . . . . 1 . 1 1 Hack Defense % 3 | 1 . . . . . . . . . . . . . 1 . . . 1 . KI Resistance % 4 | . . . . . . 1 . . . . . . . . . 1 1 . 1 TH Resistance % 4 | . . . . . . . . . . . . . . . . 1 1 . 2 Protomatter Created 2071 | . . 83 . 81 31 406 52 . 64 169 176 . 299 160 . 137 124 141 148 Integrity Restored 3853 | . . 165 . 24 39 438 60 . 180 466 259 . 742 466 . . 372 423 219 Core 3096 | . . 116 . 18 31 312 51 . 94 400 153 . 560 347 . . 372 423 219 Parts 757 | . . 49 . 6 8 126 9 . 86 66 106 . 182 119 . . . . . Protomatter Decayed 795 | . . 96 . . 16 50 31 . 38 88 201 . 138 . . 137 . . . Game ------ Seed MicroFocalLeg Manual? 0 Play Time 02:55:18 Cumulative 219.2 hours Start 2024.10.12 @ 16:09:56 End 2024.10.12 @ 19:42:18 Sessions 1 Manual Loads 0 Difficulty Adventurer Special Mode Winter2019/RPGLIKE Game No. 73 Rogue 28 Adventurer 45 Explorer 0 Win Type - Total 13 Types 10/0/3/0/0/0/0/0/0 Lore% 57 Gallery% 67 Achievement% 64 Wizard Run 0 Options --------- Layout 0 ASCII 0 Keyboard 1 Movement Vi Keybinds 0 Fullscreen 2 Font 18/SmallcapsGlow Map View 76x50 Zoom Use 0% Tactical HUD 1 Map Filters NONE Filters NONE Steam X RUN: 0b571eab-f701-4bb7-b548-a40bc3e0b3d8